Cogmind - Beta 10.2 @@@ ROGUE MODE // 2020.11.20 @ 12:16:01 // Halloween2020/ForbiddenLore Player: WayneKnight Result: Destroyed by S-43 Plague with Heavy Machine Gun Performance ------------- Evolutions (9) 4500 Regions Visited (27) 5400 Robots Destroyed (242) 1210 Value Destroyed (9719) 9719 Prototype IDs (58) 1160 Alien Tech Used (0) 0 Bonus (3243) 3243 TOTAL SCORE: 25232 Bonus ------- High Alert Combat Kills 151 Follower Combat Kills 1681 Entered Garrisons 600 Used RIF Installer 1500 Network Hubs Disabled 200 Aligned with FarCom 300 Met R17 at Cetus 500 Friendly Fire -1689 Cogmind --------- Core Integrity 0/1600 Matter 281/300 Energy 98/100 System Corruption 9% Temperature Cool (0) Movement Core (50) Location -1/Command Parts ------- > --- POWER (2) -------- (None) > --- PROPULSION (7) --- (None) > --- UTILITY (12) ----- Experimental Signal Interpreter Advanced Core Analyzer > --- WEAPON (4) ------- (None) > --- INVENTORY (4) ---- Light Quantum Reactor Damper Plating Peak State ------------ > --- POWER ------------ F-cell Engine Light Particle Reactor > --- PROPULSION ------- Impulse Thruster Impulse Thruster Array Impulse Thruster Array Impulse Thruster Array > --- UTILITY ---------- Large Storage Unit High-capacity Storage Unit Experimental Signal Interpreter Advanced Core Analyzer Advanced ECM Suite Damper Plating Improved Hacking Suite Advanced Hacking Suite System Shield Improved System Shield > --- WEAPON ----------- Greatsword > --- INVENTORY -------- Quantum Reactor Impulse Thruster Impulse Thruster Field Propulsion Array Field Propulsion Array Precision Matter Filter Improved Power Shielding Improved Dynamic Insulation System Trap Reconfigurator Fusion Bomb Launcher Greatsword [Rating: 144] Favorites ----------- Power Improved Ion Engine Engine Improved Ion Engine Power Core Fission Core Reactor Light Particle Reactor Propulsion Armored Treads Treads Armored Treads Leg Aluminum Leg Hover Unit Gravmag Array Flight Unit Impulse Thruster Array Utility Large Storage Unit Device EM Shield Storage Large Storage Unit Processor Experimental Signal Interpreter Hackware Improved System Shield Protection Hardened Medium Armor Plating Weapon Improved Assault Rifle Energy Gun Spread Laser Energy Cannon EM Pulse Cannon Ballistic Gun Improved Assault Rifle Launcher Grenade Launcher Special Weapon Mining Laser Impact Weapon Power Maul Slashing Weapon Great Axe Piercing Weapon Lance Special Melee Weapon Improved Datajack Build | -11 -10 -10 -9 -9 -9 -8 -8 -8 -8 -8 -7 -7 -6 -6 -6 -6 -6 -5 -5 -5 -4 -4 -4 -3 -2 -1 -1 ------- Run | Scr Mat Min Mat Min Exi Min Mat Gar Mat Gar Fac Gar Fac Ext Cet Arc Hub Fac Was Fac Fac Was Fac Res Res Acc Com Slots Evolved 18 | . . . 2 . . . 2 . . . 2 . 2 . . . . 2 . . 2 . . 2 2 2 . Power 1 | . . . . . . . . . . . . . . . . . . . . . . . . 1 . . . Propulsion 5 | . . . 1 . . . . . . . 1 . . . . . . . . . 2 . . . . 1 . Utility 10 | . . . 1 . . . 2 . . . 1 . 1 . . . . 2 . . . . . 1 1 1 . Weapon 2 | . . . . . . . . . . . . . 1 . . . . . . . . . . . 1 . . Parts Attached 316 | 4 5 1 36 . . 9 15 1 2 5 6 5 17 17 12 7 6 69 . 5 10 8 3 24 17 22 10 Power 25 | . 1 . 4 . . . 2 . . . . . 1 . . 1 . 5 . . 2 . . 2 3 3 1 Engine 13 | . 1 . 4 . . . 2 . . . . . 1 . . . . 4 . . 1 . . . . . . Core 4 | . . . . . . . . . . . . . . . . 1 . 1 . . 1 . . . 1 . . Reactor 8 | . . . . . . . . . . . . . . . . . . . . . . . . 2 2 3 1 Propulsion 76 | 2 . . 16 . . . 3 . . 1 1 . 7 . 1 3 3 17 . . 2 1 1 5 . 6 7 Treads 36 | 2 . . 15 . . . 3 . . 1 1 . 7 . 1 3 3 . . . . . . . . . . Leg 1 | . . . 1 . . . . . . . . . . . . . . . . . . . . . . . . Wheel . | . . . . . . . . . . . . . . . . . . . . . . . . . . . . Hover 11 | . . . . . . . . . . . . . . . . . . 11 . . . . . . . . . Flight 28 | . . . . . . . . . . . . . . . . . . 6 . . 2 1 1 5 . 6 7 Utility 105 | 1 2 . 3 . . . 4 . . . 4 1 5 11 2 1 . 20 . 2 4 7 2 13 11 12 . Device 46 | . . . . . . . . . . . . . 2 9 . . . 13 . 1 2 2 1 7 5 4 . Storage 12 | 1 2 . 3 . . . 2 . . . . . 2 . . . . . . . . 1 . 1 . . . Processor 7 | . . . . . . . . . . . . . . . 1 . . 4 . . 1 . . . 1 . . Hackware 11 | . . . . . . . . . . . 1 . . 1 1 1 . 2 . 1 1 . 1 . . 2 . Protection 29 | . . . . . . . 2 . . . 3 1 1 1 . . . 1 . . . 4 . 5 5 6 . Artifact . | . . . . . . . . . . . . . . . . . . . . . . . . . . . . Weapon 110 | 1 2 1 13 . . 9 6 1 2 4 1 4 4 6 9 2 3 27 . 3 2 . . 4 3 1 2 Energy Gun 8 | . 1 1 4 . . . . . . . . . . . . . . 2 . . . . . . . . . Energy Cannon 1 | . . . 1 . . . . . . . . . . . . . . . . . . . . . . . . Ballistic Gun 54 | 1 1 . 7 . . 7 3 1 2 2 . 3 3 4 2 2 2 14 . . . . . . . . . Ballistic Cannon . | . . . . . . . . . . . . . . . . . . . . . . . . . . . . Launcher 17 | . . . 1 . . 2 2 . . 2 . 1 . 2 4 . . 1 . 1 . . . 1 . . . Special Weapon 1 | . . . . . . . . . . . . . . . 1 . . . . . . . . . . . . Impact Weapon 2 | . . . . . . . . . . . . . . . . . . 1 . 1 . . . . . . . Slashing Weapon 25 | . . . . . . . . . . . 1 . 1 . 2 . 1 9 . 1 2 . . 3 3 1 1 Piercing Weapon 1 | . . . . . . . . . . . . . . . . . . . . . . . . . . . 1 Special Melee Weapon 1 | . . . . . . . 1 . . . . . . . . . . . . . . . . . . . . Unidentified Prototypes 10 | . . . . . . . 2 . 1 . . . . . . . . . . . 3 2 . . . 2 . Parts Lost 72 | . 2 . 6 . . 1 . . . . . 2 1 1 1 4 8 19 . . . . 1 2 . 8 16 Power 8 | . 1 . . . . . . . . . . . . . . 1 1 3 . . . . . . . 1 1 Propulsion 29 | . . . 2 . . . . . . . . . 1 . 1 3 3 5 . . . . 1 1 . 3 9 Utility 14 | . . . . . . . . . . . . 1 . . . . . 7 . . . . . . . 2 4 Weapon 21 | . 1 . 4 . . 1 . . . . . 1 . 1 . . 4 4 . . . . . 1 . 2 2 Highest Loss Streak 9 | . 2 . 2 . . 1 . . . . . 1 1 1 1 3 7 7 . . . . 1 2 . 6 9 Average Slot Usage (%) 91 | . 100 100 99 100 100 99 99 100 100 100 100 100 98 99 100 99 99 82 64 67 75 76 76 65 63 61 34 Engine 6 | . 14 14 11 11 11 11 9 9 9 9 7 7 6 6 6 2 . 3 . . . 5 5 4 4 3 . Treads 20 | . 28 28 30 33 33 33 27 27 27 27 30 30 25 26 26 25 25 . . . . . . . . . . Hover 1 | . . . . . . . . . . . . . . . . . . 14 . . . . . . . . . Flight 2 | . . . . . . . . . . . . . . . . . . 2 11 11 12 15 15 14 13 15 8 Device 2 | . . . . . . . . . . . . . 5 5 . . . 9 11 12 10 5 1 3 . 1 . Storage 24 | . 28 28 33 33 33 33 35 36 36 36 30 30 25 26 26 26 26 15 11 6 5 5 5 4 8 8 3 Processor 3 | . . . . . . . . . . . . . . . 1 6 6 7 17 17 18 13 10 9 9 8 8 Hackware 6 | . . . . . . . . . . . 5 7 6 6 13 13 13 15 5 6 11 15 20 19 17 15 10 Protection 2 | . . . . . . . 8 9 9 9 8 7 5 6 4 . . . . . . 3 7 . 1 . . Energy Gun 1 | . 7 12 7 . . . . . . . . . . . . . . . . . . . . . . . . Ballistic Gun 11 | . 21 15 10 11 11 15 17 17 18 18 14 14 19 18 10 19 19 2 . . . . . . . . . Slashing Weapon 1 | . . . . . . . . . . . . . . . 2 . . 4 . 1 8 10 9 3 4 3 . Naked Turns . | . . . . . . . . . . . . . . . . . . . . . . . . . . . . Heaviest Build 127 | 15 56 59 78 77 77 78 102 103 103 103 108 103 108 108 108 106 101 74 39 39 40 59 59 113 115 127 71 Greatest Support 110 | 40 40 40 66 66 66 66 66 60 60 62 82 82 110 110 110 102 94 79 40 40 48 63 63 81 81 91 79 Greatest Overweight (x) 24 | . 1 1 24 1 1 1 1 1 1 1 1 1 1 . 1 1 2 12 . . 12 . 1 1 1 1 1 Average Overweight (x) . | . . 1 1 1 1 1 1 1 1 1 1 1 . . . . . . . . . . . . . . . Largest Inventory Capacity 30 | 8 18 18 24 24 24 24 30 30 30 30 30 30 30 30 30 30 30 30 16 16 10 12 12 18 18 18 18 Average Capacity 24 | 6 16 18 23 24 24 24 29 30 30 30 30 30 29 30 30 30 30 20 16 11 10 10 12 13 18 18 10 Most Carried 30 | 6 9 16 24 24 24 24 30 30 30 30 29 29 30 30 30 30 30 30 16 16 10 12 12 18 18 18 11 Average Carried 23 | 5 7 12 22 23 23 23 29 30 29 29 28 28 29 29 29 28 29 20 15 11 9 10 11 11 17 16 7 Final Capacity 30 | 8 18 18 24 24 24 24 30 30 30 30 30 30 30 30 30 30 30 16 16 10 10 12 12 18 18 18 4 Final Carried 30 | 5 7 16 24 24 24 24 30 30 30 30 29 27 30 30 30 30 27 15 16 10 10 12 12 18 18 11 4 Class Distribution -------------------- 39% | Hauler-Mutant 17% | Hacker-Mutant 10% | Hauler-Skirmisher 7% | Mutant 5% | Hacker-Sprinter 5% | Scavenger-Mutant 4% | Commander-Tank 3% | Hauler-Tank Dominant Class ---------------- Mutant | -10/Materials Mutant | -10/Mines Hauler-Mutant | -9/Materials Hauler-Mutant | -9/Mines Hauler-Mutant | -9/Exiles Hauler-Mutant | -8/Mines Hauler-Mutant | -8/Materials Hauler-Mutant | -8/Garrison Hauler-Mutant | -8/Materials Hauler-Mutant | -8/Garrison Hauler-Mutant | -7/Factory Hauler-Mutant | -7/Garrison Hauler-Tank | -6/Factory Commander-Tank | -6/Extension Hauler-Mutant | -6/Cetus Hauler-Skirmisher | -6/Archives Hauler-Skirmisher | -6/Hub_04(d) Hacker-Mutant | -5/Factory Mutant | -5/Waste Mutant | -5/Factory Hacker-Mutant | -4/Factory Hacker-Mutant | -4/Waste Hacker-Mutant | -4/Factory Hacker-Mutant | -3/Research Hacker-Mutant | -2/Research Hacker-Sprinter | -1/Access Hacker-Mutant | -1/Command Resources | -11 -10 -10 -9 -9 -9 -8 -8 -8 -8 -8 -7 -7 -6 -6 -6 -6 -6 -5 -5 -5 -4 -4 -4 -3 -2 -1 -1 ----------- Run | Scr Mat Min Mat Min Exi Min Mat Gar Mat Gar Fac Gar Fac Ext Cet Arc Hub Fac Was Fac Fac Was Fac Res Res Acc Com Matter Collected 6466 | 245 69 40 592 12 . 152 419 108 400 260 70 144 529 541 363 239 248 905 . 48 355 90 20 193 194 196 34 Remotely . | . . . . . . . . . . . . . . . . . . . . . . . . . . . . Salvage Created 10577 | 73 152 280 1468 87 . 375 557 198 711 188 46 255 417 507 469 312 873 873 . 101 223 699 96 647 194 742 34 Parts 594 | 3 12 16 89 4 . 22 43 18 34 11 1 10 33 25 14 10 45 50 . 7 12 7 4 38 17 67 2 Haulers Intercepted 6 | . . . 3 . . . . . 1 . . . . . . . 1 . . . 1 . . . . . . Recyclers Shooed 5 | . . . 1 . . . . . 1 . . . . . . . . 2 . . . . . 1 . . . Parts Field Recycled . | . . . . . . . . . . . . . . . . . . . . . . . . . . . . Retrieved Matter . | . . . . . . . . . . . . . . . . . . . . . . . . . . . . Parts Self-Destructed . | . . . . . . . . . . . . . . . . . . . . . . . . . . . . Prevented . | . . . . . . . . . . . . . . . . . . . . . . . . . . . . Kills | -11 -10 -10 -9 -9 -9 -8 -8 -8 -8 -8 -7 -7 -6 -6 -6 -6 -6 -5 -5 -5 -4 -4 -4 -3 -2 -1 -1 ------- Run | Scr Mat Min Mat Min Exi Min Mat Gar Mat Gar Fac Gar Fac Ext Cet Arc Hub Fac Was Fac Fac Was Fac Res Res Acc Com Combat Hostiles Destroyed 181 | . 2 6 32 3 . 11 9 11 9 5 1 7 9 8 11 4 11 13 . 4 2 . 1 7 3 11 1 Melee 27 | . . . . . . . . . . . . . . . . . . 2 . . 2 . 1 7 3 11 1 Guns 116 | . 2 6 30 . . 2 6 11 9 2 1 5 9 7 1 4 10 11 . . . . . . . . . AOE 35 | . . . 1 3 . 9 3 . . 3 . 2 . 1 10 . . . . 3 . . . . . . . Classes Destroyed 14 | 1 3 1 4 . . 3 1 . . . 1 . . . . . . . . . . . . . . . . Worker 13 | . . . . . . 1 1 . . . . . . 3 . . 6 2 . . . . . . . . . Builder 8 | . 1 . . . . 1 . . . . . . 1 2 . . 1 2 . . . . . . . . . Tunneler 3 | . . 1 1 . . 1 . . . . . . . . . . . . . . . . . . . . . Hauler 6 | . . . 3 . . . . . 1 . . . . . . . 1 . . . 1 . . . . . . Recycler 7 | 1 . . . 1 . . 1 . 3 . . . . . . . . . . . . . . 1 . . . Operator 4 | . . . 2 . . . 1 . . . . . . . . . . . . . . . . . . 1 . Watcher 18 | . 1 . 3 . . . 3 . 1 . . . . . 2 . 1 3 . 2 . . 1 1 . . . Swarmer 35 | . . . 7 3 . . . 10 . . . . 3 . 4 . . 3 . 4 . . . . . . 1 Grunt 65 | . 2 6 17 . . 8 5 . 6 1 . 5 . 3 6 . 5 1 . . . . . . . . . Brawler 1 | . . . . . . 1 . . . . . . . . . . . . . . . . . . . . . Duelist 3 | . . . . . . . 1 . . 2 . . . . . . . . . . . . . . . . . Sentry 27 | . . . 8 . . . 3 . 2 . . . . 5 . 4 2 3 . . . . . . . . . Hunter 13 | . . . . . . 2 . 1 1 2 . 2 3 . . . 1 1 . . . . . . . . . Programmer 37 | . . . . . . . . . . . 1 . 3 . 1 . 3 5 . . 2 . 1 7 3 11 . Butcher 1 | . . . . . . . . . . . . . . . 1 . . . . . . . . . . . . Guerrilla 1 | . . . . . . . . . . . . . . . 1 . . . . . . . . . . . . Best Kill Streak 8 | 1 2 2 5 3 . 7 4 6 5 4 1 4 3 6 5 1 8 4 . 4 1 . 2 2 2 3 1 Combat Bots Only 6 | . 2 2 5 3 . 6 3 6 2 4 1 4 3 2 5 1 3 3 . 4 1 . 1 2 2 3 1 Max Kills in Single Turn 6 | 1 1 1 2 2 . 2 1 2 1 3 1 1 1 5 3 1 6 1 . 3 1 . 1 1 1 1 1 Gunslinging 1 | . . . 1 . . . . 1 . . . . . . . . . . . . . . . . . . . Exploded 3 | . . . 1 2 . 2 1 . . 3 . 1 . 1 3 . . . . 3 . . . . . . . Melee 1 | . . . . . . . . . . . . . . . . . . 1 . . 1 . 1 1 1 1 1 Uniques/NPCs Destroyed . | . . . . . . . . . . . . . . . . . . . . . . . . . . . . Combat | -11 -10 -10 -9 -9 -9 -8 -8 -8 -8 -8 -7 -7 -6 -6 -6 -6 -6 -5 -5 -5 -4 -4 -4 -3 -2 -1 -1 -------- Run | Scr Mat Min Mat Min Exi Min Mat Gar Mat Gar Fac Gar Fac Ext Cet Arc Hub Fac Was Fac Fac Was Fac Res Res Acc Com Damage Taken 15916 | . 323 130 1406 38 . 322 432 367 415 361 77 247 599 943 475 747 1359 2808 . 140 45 . 274 630 330 1198 2250 Core 3248 | . 39 18 123 . . 38 45 61 . 33 . 20 41 79 40 49 228 527 . 99 30 . 20 70 76 166 1446 Absorbed by Shields 44 | . . . . . . . . . . . . . . . . . . 44 . . . . . . . . . Core Remaining (%) 77 | 100 . 77 . . . 59 . . . 74 . 97 . . . . 48 . . 37 . . 95 94 94 . . Volleys Fired 458 | 3 20 19 89 2 . 22 33 18 37 20 5 15 24 33 22 21 26 46 . 3 . . . . . . . Largest 3 | 2 2 2 2 1 . 2 2 2 2 2 2 2 3 3 3 3 3 3 . 1 . . . . . . . Hottest 147 | 60 60 95 130 30 . 56 53 58 58 58 58 58 86 86 100 76 76 147 . 30 . . . . . . . Shots Fired 972 | 6 39 38 167 2 . 27 57 36 74 37 10 27 72 95 29 63 78 112 . 3 . . . . . . . Gun 886 | 6 39 38 145 . . 11 48 36 74 34 10 24 72 89 7 63 78 112 . . . . . . . . . Cannon 22 | . . . 22 . . . . . . . . . . . . . . . . . . . . . . . . Launcher 55 | . . . . 2 . 16 9 . . 3 . 3 . 6 13 . . . . 3 . . . . . . . Special 9 | . . . . . . . . . . . . . . . 9 . . . . . . . . . . . . Kinetic 790 | 5 32 30 70 . . 11 48 36 74 34 10 24 72 89 7 63 78 107 . . . . . . . . . Thermal 66 | 1 . 8 43 . . . . . . . . . . . 9 . . 5 . . . . . . . . . Explosive 55 | . . . . 2 . 16 9 . . 3 . 3 . 6 13 . . . . 3 . . . . . . . Electromagnetic 61 | . 7 . 54 . . . . . . . . . . . . . . . . . . . . . . . . Robot Hit Streak 40 | 3 6 10 20 . . 8 10 13 17 11 12 21 11 40 13 13 31 12 . 2 . . . . . . . Robot Miss Streak 8 | 1 3 2 5 . . 1 4 3 3 4 . 1 3 4 4 1 2 8 . 1 . . . . . . . Penetration Max 1 | . . . . . . . 1 . . . . . . . . . 1 1 . . . . . . . . . Secondary Targets 14 | . . 1 5 . . . . 4 . . . . 1 . . . 1 2 . . . . . . . . . Max Gunslinging Chain 1 | . . 1 1 . . . . 1 . . . . 1 . . . 1 1 . . . . . . . . . Shots Hit Robots 853 | 5 23 29 131 . . 13 37 22 54 24 10 22 44 76 13 55 64 91 . 5 9 13 11 49 9 42 2 Core Hits 501 | 2 11 17 81 3 . 30 27 13 25 14 3 16 20 32 52 15 42 38 . 8 4 5 5 14 5 18 1 Critical Hits 28 | . . . 1 . . . 1 . 2 . . 1 2 . . 1 2 9 . . . 1 . 5 . 2 1 Critical Kills 12 | . . . 1 . . . 1 . 2 . . . 1 . . . . 4 . . . . . 2 . . 1 Critical Parts Destroyed 16 | . . . . . . . . . . . . 1 1 . . 1 2 5 . . . 1 . 3 . 2 . Melee Attacks 365 | . . . . . . . . . . . 2 . 2 . 19 . 1 40 . 11 19 16 27 97 23 94 14 Impact 13 | . . . . . . . . . . . . . . . . . . 1 . 10 2 . . . . . . Slashing 339 | . . . . . . . . . . . 2 . 2 . 19 . 1 39 . 1 17 16 27 97 23 94 1 Piercing 13 | . . . . . . . . . . . . . . . . . . . . . . . . . . . 13 Sneak Attacks 7 | . . . . . . . . . . . . . . . . . . 2 . . 1 . . 2 . 2 . Combat Hostiles 1 | . . . . . . . . . . . . . . . . . . . . . . . . . . 1 . Follow-up Attacks 7 | . . . . . . . . . . . . . . . . . . 1 . . 2 1 2 1 . . . Damage Inflicted 27730 | 37 263 390 2168 188 . 1050 1258 430 1066 589 235 628 827 1945 1923 999 2340 2807 . 322 567 1538 574 2643 483 2372 88 Guns 12162 | 37 247 347 1717 . . 93 726 430 1061 344 235 335 809 1413 97 999 1327 1945 . . . . . . . . . Cannons 304 | . . . 304 . . . . . . . . . . . . . . . . . . . . . . . . Explosions 5748 | . . . 112 142 . 880 520 . . 245 . 293 . 521 1826 . 987 . . 222 . . . . . . . Melee 9221 | . . . . . . . . . . . . . . . . . . 862 . 100 567 1538 574 2643 483 2372 82 Ramming 295 | . 16 43 35 46 . 77 12 . 5 . . . 18 11 . . 26 . . . . . . . . . 6 Kinetic 10729 | 25 158 195 634 . . 93 726 430 1061 344 235 335 809 1413 97 999 1327 1848 . . . . . . . . . Thermal 955 | 12 . 152 694 . . . . . . . . . . . . . . 97 . . . . . . . . . Explosive 4649 | . . . . 142 . 880 520 . . 245 . 293 . 521 1826 . . . . 222 . . . . . . . Electromagnetic 1881 | . 89 . 805 . . . . . . . . . . . . . 987 . . . . . . . . . . Impact 177 | . . . . . . . . . . . . . . . . . . . . 100 77 . . . . . . Slashing 8962 | . . . . . . . . . . . . . . . . . . 862 . . 490 1538 574 2643 483 2372 . Piercing 82 | . . . . . . . . . . . . . . . . . . . . . . . . . . . 82 Highest Corruption 9 | . . . . . . . . . . . . . 3 3 . . 6 5 6 6 1 1 4 3 3 2 9 Average Corruption 2 | . . . . . . . . . . . . . 2 2 . . 4 2 6 6 1 1 3 1 2 1 3 Corruption Purged 16 | . . . . . . . . . . . . . 1 3 . . . 9 . . . 1 . 2 . . . Effects 115 | . . . . . . . . . . . . . 23 9 . . . 28 1 10 3 . 5 8 8 10 10 Message Errors 34 | . . . . . . . . . . . . . 6 2 . . . 7 1 2 1 . 3 4 2 3 3 Matter Fused 20 | . . . . . . . . . . . . . 5 3 . . . 5 . 4 . . 1 1 . . 1 Heat Flow Errors 9 | . . . . . . . . . . . . . 3 . . . . 5 . 1 . . . . . . . Energy Discharges 18 | . . . . . . . . . . . . . 2 3 . . . 5 . 2 1 . . . . 4 1 Parts Rejected 3 | . . . . . . . . . . . . . . . . . . . . 1 . . 1 . . . 1 Data Loss (minor) 23 | . . . . . . . . . . . . . 5 . . . . 4 . . 1 . . 3 5 2 3 Targeting Errors 6 | . . . . . . . . . . . . . 2 . . . . 1 . . . . . . 1 1 1 Weapon Failures 2 | . . . . . . . . . . . . . . 1 . . . 1 . . . . . . . . . Overload Shots . | . . . . . . . . . . . . . . . . . . . . . . . . . . . . Overflow Damage 1339 | . . . 20 . . 16 . . . . . . . . 2 . 98 127 . 26 16 501 49 228 45 164 47 Projectiles 6 | . . . 6 . . . . . . . . . . . . . . . . . . . . . . . . Explosions 177 | . . . 14 . . 16 . . . . . . . . 2 . 98 . . . . . . . . . 47 Melee 1156 | . . . . . . . . . . . . . . . . . . 127 . 26 16 501 49 228 45 164 . Knockbacks 3 | . . . 1 . . . . . . . . . . 1 . . . . . 1 . . . . . . . Impact 3 | . . . 1 . . . . . . . . . . 1 . . . . . 1 . . . . . . . Kinetic . | . . . . . . . . . . . . . . . . . . . . . . . . . . . . Secondary . | . . . . . . . . . . . . . . . . . . . . . . . . . . . . Self-Inflicted Damage 401 | . . . 49 . . 76 . . . 14 . . . . . . 104 . . . . . . . . . 158 Shots 6 | . . . 1 . . 2 . . . 1 . . . . . . 1 . . . . . . . . . 1 Rammed 31 | . 2 5 4 3 . 10 1 . 1 . . . 1 1 . . 1 . . . . . . . . . 2 Targets Rammed 35 | . 2 6 4 4 . 12 1 . 1 . . . 1 1 . . 1 . . . . . . . . . 2 Kicked . | . . . . . . . . . . . . . . . . . . . . . . . . . . . . Crushed 4 | . . 1 . 1 . 2 . . . . . . . . . . . . . . . . . . . . . Highest Temperature 521 | 20 103 210 521 . . 11 39 80 86 68 28 12 208 83 19 4 27 312 . 203 . . . . . 246 . Average Temperature 63 | 15 48 79 108 . . 4 19 34 31 23 13 5 31 28 13 4 10 102 . 120 . . . . . 108 . Received Heat Transfer 2505 | . 183 69 549 . . 54 207 . 171 54 . 72 . 318 39 99 132 324 . 9 . . 9 36 . 18 162 Effects 11 | . . . 10 . . . . . . . . . . . . . . 1 . . . . . . . . . Shutdowns 2 | . . . 2 . . . . . . . . . . . . . . . . . . . . . . . . Energy Bleed 2 | . . . 1 . . . . . . . . . . . . . . 1 . . . . . . . . . Interference 3 | . . . 3 . . . . . . . . . . . . . . . . . . . . . . . . Damage (minor) 1 | . . . 1 . . . . . . . . . . . . . . . . . . . . . . . . Damage (major) 3 | . . . 3 . . . . . . . . . . . . . . . . . . . . . . . . Siege Activations . | . . . . . . . . . . . . . . . . . . . . . . . . . . . . Robots Corrupted 4 | . . . 2 . . . . . . . . . . . . . 2 . . . . . . . . . . Combat Hostiles 2 | . . . 1 . . . . . . . . . . . . . 1 . . . . . . . . . . Parts Fried 9 | . 1 . 4 . . . . . . . . . . . . . 3 . . 1 . . . . . . . Impact Corruptions 2 | . . . . . . . . . . . . . . . . . . . . 2 . . . . . . . Robots Melted . | . . . . . . . . . . . . . . . . . . . . . . . . . . . . Combat Hostiles . | . . . . . . . . . . . . . . . . . . . . . . . . . . . . Parts Melted 2 | . . . 1 . . . . . . . . . . . . . . . . . . . . . . 1 . Heat Transferred 1323 | 25 . 259 891 . . . . . . . . . . . . . . 148 . . . . . . . . . Parts Sabotaged . | . . . . . . . . . . . . . . . . . . . . . . . . . . . . Parts Stolen . | . . . . . . . . . . . . . . . . . . . . . . . . . . . . Parts Stripped . | . . . . . . . . . . . . . . . . . . . . . . . . . . . . Power Chain Reactions 2 | . . . 2 . . . . . . . . . . . . . . . . . . . . . . . . Missiles Intercepted . | . . . . . . . . . . . . . . . . . . . . . . . . . . . . Alert | -11 -10 -10 -9 -9 -9 -8 -8 -8 -8 -8 -7 -7 -6 -6 -6 -6 -6 -5 -5 -5 -4 -4 -4 -3 -2 -1 -1 ------- Run | Scr Mat Min Mat Min Exi Min Mat Gar Mat Gar Fac Gar Fac Ext Cet Arc Hub Fac Was Fac Fac Was Fac Res Res Acc Com Peak Influence 710 | 5 62 100 710 160 . 195 136 285 248 243 160 222 137 383 474 274 488 316 92 304 186 61 154 323 351 522 456 Initial 311 | . 3 . . 155 . . 31 40 138 99 127 . 116 43 10 129 25 214 92 64 148 57 42 15 43 19 311 Average 138 | 3 29 23 239 113 . 118 44 112 106 157 137 77 42 149 297 234 28 137 92 155 129 60 89 138 108 199 375 Maximum Alert Level 3 | . . . 3 . . . . 1 1 1 . 1 . 1 2 1 2 1 . 1 . . . 1 1 2 2 Low Security (%) 73 | 100 100 100 46 100 . 100 100 73 87 68 100 79 100 61 22 26 99 77 100 56 100 100 100 74 88 55 . Level 1 19 | . . . 24 . . . . 26 12 31 . 20 . 38 52 73 . 22 . 43 . . . 25 11 43 79 Level 2 6 | . . . 28 . . . . . . . . . . . 24 . . . . . . . . . . 1 20 Level 3 . | . . . . . . . . . . . . . . . . . . . . . . . . . . . . Level 4 . | . . . . . . . . . . . . . . . . . . . . . . . . . . . . Level 5 . | . . . . . . . . . . . . . . . . . . . . . . . . . . . . High Security . | . . . . . . . . . . . . . . . . . . . . . . . . . . . . Max Security . | . . . . . . . . . . . . . . . . . . . . . . . . . . . . Squads Dispatched 38 | . . . 5 . . . . . 1 . 1 . 3 . . . 7 6 . . 2 . . 2 2 7 2 Investigation 6 | . . . 3 . . . . . 1 . . . . . . . . 2 . . . . . . . . . Extermination 20 | . . . . . . . . . . . 1 . 3 . . . 3 4 . . 1 . . 2 1 4 1 Reinforcement 11 | . . . 2 . . . . . . . . . . . . . 3 . . . 1 . . . 1 3 1 Assault 1 | . . . . . . . . . . . . . . . . . 1 . . . . . . . . . . Garrison . | . . . . . . . . . . . . . . . . . . . . . . . . . . . . Intercept . | . . . . . . . . . . . . . . . . . . . . . . . . . . . . Construction Impeded 1 | . . . . . . . . . . . . . . . . . 1 . . . . . . . . . . Haulers Reinforced 1 | . . . . . . . . . . . . . . . . . . . . . 1 . . . . . . Stealth | -11 -10 -10 -9 -9 -9 -8 -8 -8 -8 -8 -7 -7 -6 -6 -6 -6 -6 -5 -5 -5 -4 -4 -4 -3 -2 -1 -1 --------- Run | Scr Mat Min Mat Min Exi Min Mat Gar Mat Gar Fac Gar Fac Ext Cet Arc Hub Fac Was Fac Fac Was Fac Res Res Acc Com Distress Signals 29 | . . . 1 . . . 1 . 1 . . . 1 3 2 . 3 3 . . . . 1 3 3 5 2 Communications Jammed . | . . . . . . . . . . . . . . . . . . . . . . . . . . . . Distress Signals . | . . . . . . . . . . . . . . . . . . . . . . . . . . . . Times Spotted 415 | . 6 6 44 3 . 11 14 11 16 6 1 5 12 25 21 7 26 41 5 9 9 . 9 25 16 62 25 Peak Tracking Total 20 | . 2 2 5 3 . 3 4 5 3 4 1 3 4 5 6 1 16 6 6 4 3 . 7 6 10 20 14 Tactical Retreats 55 | . . . 1 . . 1 . . 6 1 . 2 . . . . 1 11 . . 2 . 1 7 4 13 5 Traps | -11 -10 -10 -9 -9 -9 -8 -8 -8 -8 -8 -7 -7 -6 -6 -6 -6 -6 -5 -5 -5 -4 -4 -4 -3 -2 -1 -1 ------- Run | Scr Mat Min Mat Min Exi Min Mat Gar Mat Gar Fac Gar Fac Ext Cet Arc Hub Fac Was Fac Fac Was Fac Res Res Acc Com Traps Triggered 28 | . . . 4 . . . . . 1 3 . 2 2 . . . . 10 . . 2 . . 2 . 2 . Indirectly . | . . . . . . . . . . . . . . . . . . . . . . . . . . . . Trap Hack Attempts 15 | . . . . . . . 15 . . . . . . . . . . . . . . . . . . . . Triggered . | . . . . . . . . . . . . . . . . . . . . . . . . . . . . Disarmed 2 | . . . . . . . 2 . . . . . . . . . . . . . . . . . . . . Reprogrammed 9 | . . . . . . . . . . . . . 6 . . . . . . . . . . . . . 3 Reused 5 | . . . . . . . . . . . . . 1 . . . . 1 . . 1 . . 1 . . 1 Traps Reconfigurated 57 | . . . . . . . . . . . . . . 15 . . . 10 . 7 15 . . 3 6 1 . Traps Extracted . | . . . . . . . . . . . . . . . . . . . . . . . . . . . . Installed . | . . . . . . . . . . . . . . . . . . . . . . . . . . . . Triggered 5 | . . . . . . . . . . . . . 1 . . . . 1 . . 1 . . 1 . . 1 Machines | -11 -10 -10 -9 -9 -9 -8 -8 -8 -8 -8 -7 -7 -6 -6 -6 -6 -6 -5 -5 -5 -4 -4 -4 -3 -2 -1 -1 ---------- Run | Scr Mat Min Mat Min Exi Min Mat Gar Mat Gar Fac Gar Fac Ext Cet Arc Hub Fac Was Fac Fac Was Fac Res Res Acc Com Machines Disabled 27 | . . . 1 . . . . . . . . . 2 3 4 3 10 1 . 1 . . . . . . 2 Max in Single Turn 10 | . . . 1 . . . . . . . . . 1 1 3 1 10 1 . 1 . . . . . . 2 Garrison Access 16 | . . . . . . . . . . . . . 1 . . . 1 4 . 2 2 . 1 2 . 3 . Phase Generator 1 | . . . . . . . . . . . . . . . . . . . . . . . . . . . 1 Network Hub 1 | . . . . . . . . . . . . . . . . . 1 . . . . . . . . . . Machines Sabotaged . | . . . . . . . . . . . . . . . . . . . . . . . . . . . . Garrisons Compromised . | . . . . . . . . . . . . . . . . . . . . . . . . . . . . Overloaded Fab Kills . | . . . . . . . . . . . . . . . . . . . . . . . . . . . . Fab Network Shutdowns . | . . . . . . . . . . . . . . . . . . . . . . . . . . . . Hacking | -11 -10 -10 -9 -9 -9 -8 -8 -8 -8 -8 -7 -7 -6 -6 -6 -6 -6 -5 -5 -5 -4 -4 -4 -3 -2 -1 -1 --------- Run | Scr Mat Min Mat Min Exi Min Mat Gar Mat Gar Fac Gar Fac Ext Cet Arc Hub Fac Was Fac Fac Was Fac Res Res Acc Com Machines Accessed 131 | . 4 . 12 . 2 . 9 . 6 . 2 . 8 12 2 1 2 19 . 7 8 . 4 14 4 10 5 Terminals 83 | . 4 . 7 . . . 7 . 2 . 1 . 4 12 2 . 2 10 . 4 3 . 1 10 3 6 5 Fabricators 4 | . . . . . . . . . . . . . . . . . . 1 . . 1 . . 1 . 1 . Repair Stations 7 | . . . 2 . . . . . . . . . 2 . . . . 2 . . . . 1 . . . . Recycling Units 7 | . . . 1 . . . . . 1 . . . 1 . . . . 2 . 1 1 . . . . . . Scanalyzers 9 | . . . 2 . . . 1 . 2 . . . . . . . . . . . 1 . 1 1 1 . . Garrison Access 18 | . . . . . . . 1 . 1 . 1 . 1 . . . . 4 . 2 2 . 1 2 . 3 . Total Hacks 535 | . 15 . 38 . 2 . 38 . 17 . 3 . 26 28 10 25 10 91 . 16 40 . 15 67 36 38 20 Successful 327 | . 8 . 25 . 2 . 27 . 12 . 3 . 20 15 5 25 7 47 . 9 28 . 10 33 22 21 8 Failed 207 | . 7 . 13 . . . 10 . 5 . . . 6 13 5 . 3 44 . 7 12 . 5 34 14 17 12 Catastrophic 29 | . 1 . 2 . . . . . . . . . 1 1 2 . 1 5 . 2 2 . 1 5 2 1 3 Database Lockouts 1 | . . . . . . . 1 . . . . . . . . . . . . . . . . . . . . Manual 224 | . 15 . 14 . 1 . 21 . 9 . 2 . 8 7 1 1 6 47 . 8 13 . 2 35 11 20 3 Terminals 378 | . 15 . 25 . . . 26 . 12 . 2 . 13 28 10 . 10 69 . 12 22 . 7 59 24 24 20 Fabricators 30 | . . . . . . . . . . . . . . . . . . 9 . . 5 . . 5 . 11 . Repair Stations 21 | . . . 4 . . . . . . . . . 10 . . . . 4 . . . . 3 . . . . Recycling Units 14 | . . . 3 . . . . . 1 . . . 2 . . . . 5 . 2 1 . . . . . . Scanalyzers 46 | . . . 6 . . . 10 . 3 . . . . . . . . . . . 10 . 4 1 12 . . Garrison Access 19 | . . . . . . . 2 . 1 . 1 . 1 . . . . 4 . 2 2 . 1 2 . 3 . Terminal Hacks 156 | . 3 . 9 . 2 . 9 . 4 . . . 7 15 5 25 5 21 . 3 7 . 2 14 8 9 8 Record 34 | . . . . . 1 . . . . . . . . 1 5 25 . . . . 2 . . . . . . Part Schematic 5 | . . . . . . . . . 1 . . . . . . . 1 2 . . . . . 1 . . . Robot Analysis 13 | . 3 . 1 . . . 2 . . . . . 3 . . . . 3 . . . . . . . 1 . Prototype ID Bank 11 | . . . 1 . . . 2 . . . . . . 2 . . . 2 . 1 . . . 2 1 . . Open Door 10 | . . . . . . . . . . . . . . 7 . . . . . . . . . . . 3 . Level Access Points 3 | . . . . . . . . . . . . . . . . . . . . . . . . 1 1 1 . Branch Access Points 4 | . . . . . . . . . . . . . . 1 . . 1 1 . . . . . . . 1 . Emergency Access Points 6 | . . . . . . . 1 . . . . . . . . . . 1 . . . . . 2 . 1 1 Machine Index 1 | . . . . . . . . . . . . . . . . . . . . . . . . 1 . . . Terminal Index 5 | . . . . . . . . . . . . . . . . . . 1 . . 1 . 1 . 1 . 1 Repair Station Index 2 | . . . 1 . . . . . . . . . . . . . . 1 . . . . . . . . . Scanalyzer Index 2 | . . . . . . . . . . . . . . . . . . . . . . . . . 1 . 1 Garrison Index 3 | . . . . . . . . . . . . . . . . . . 1 . . . . . . . 1 1 Alert Level 3 | . . . 2 . . . 1 . . . . . . . . . . . . . . . . . . . . Unreport Threat 10 | . . . 2 . . . 1 . . . . . . 2 . . . 1 . . . . . 1 2 1 . Locate Traps 21 | . . . 1 . . . 2 . 1 . . . 2 1 . . 1 5 . 1 2 . 1 1 1 . 2 Reprogram Traps 2 | . . . . . . . . . . . . . 1 . . . . . . . . . . . . . 1 Recall Extermination 2 | . . . . . . . . . . . . . . . . . . 1 . . 1 . . . . . . Hauler Manifests 3 | . . . . . . . . . 1 . . . . 1 . . 1 . . . . . . . . . . Zone Layout 14 | . . . 1 . . . . . 1 . . . 1 . . . 1 2 . 1 1 . . 5 1 . . EX-Prototype ID Bank 1 | . . . . . 1 . . . . . . . . . . . . . . . . . . . . . . Disengage Seal 1 | . . . . . . . . . . . . . . . . . . . . . . . . . . . 1 Fabricator Hacks 8 | . . . . . . . . . . . . . . . . . . 2 . . 1 . . 3 . 2 . Network Status 1 | . . . . . . . . . . . . . . . . . . . . . . . . 1 . . . Load Schematic 3 | . . . . . . . . . . . . . . . . . . 1 . . . . . 1 . 1 . Build 4 | . . . . . . . . . . . . . . . . . . 1 . . 1 . . 1 . 1 . Repair Station Hacks 17 | . . . 3 . . . . . . . . . 8 . . . . 4 . . . . 2 . . . . Scan Component 9 | . . . 2 . . . . . . . . . 4 . . . . 2 . . . . 1 . . . . Repair 8 | . . . 1 . . . . . . . . . 4 . . . . 2 . . . . 1 . . . . Recycling Unit Hacks 9 | . . . 1 . . . . . 1 . . . 1 . . . . 3 . 2 1 . . . . . . Process 1 | . . . . . . . . . . . . . . . . . . . . 1 . . . . . . . Report Inventory 6 | . . . 1 . . . . . 1 . . . 1 . . . . 2 . . 1 . . . . . . Retrieve Matter 1 | . . . . . . . . . . . . . . . . . . . . 1 . . . . . . . Retrieve Components 1 | . . . . . . . . . . . . . . . . . . 1 . . . . . . . . . Scanalyzer 44 | . . . 6 . . . 10 . 2 . . . . . . . . . . . 10 . 4 . 12 . . Insert Component 21 | . . . 3 . . . 5 . 1 . . . . . . . . . . . 5 . 2 . 5 . . Analyze 23 | . . . 3 . . . 5 . 1 . . . . . . . . . . . 5 . 2 . 7 . . Garrison Access Hacks 18 | . . . . . . . 1 . 1 . 1 . 1 . . . . 4 . 2 2 . 1 2 . 3 . Unlock Access 3 | . . . . . . . 1 . 1 . 1 . . . . . . . . . . . . . . . . Seal Access 15 | . . . . . . . . . . . . . 1 . . . . 4 . 2 2 . 1 2 . 3 . Unauthorized Hacks 74 | . 5 . 5 . . . 7 . 4 . 2 . 3 . . . 2 13 . 2 7 . 1 14 2 7 . Terminals 66 | . 5 . 5 . . . 7 . 4 . 2 . 3 . . . 2 11 . 2 5 . 1 12 2 5 . Track 12 | . 2 . 2 . . . . . 1 . . . 1 . . . 1 2 . . 1 . . 1 . 1 . Assimilate 8 | . . . . . . . 3 . 1 . 1 . . . . . . . . . 1 . . 1 . 1 . Botnet 42 | . 2 . 3 . . . 4 . 2 . 1 . 2 . . . 1 8 . 2 3 . 1 9 2 2 . Detonate 1 | . . . . . . . . . . . . . . . . . . . . . . . . . . 1 . Operators 3 | . 1 . . . . . . . . . . . . . . . . 1 . . . . . 1 . . . Fabricators 8 | . . . . . . . . . . . . . . . . . . 2 . . 2 . . 2 . 2 . Prioritize 4 | . . . . . . . . . . . . . . . . . . 1 . . 1 . . 1 . 1 . Siphon 4 | . . . . . . . . . . . . . . . . . . 1 . . 1 . . 1 . 1 . Repair Stations . | . . . . . . . . . . . . . . . . . . . . . . . . . . . . Recycling Units . | . . . . . . . . . . . . . . . . . . . . . . . . . . . . Scanalyzers . | . . . . . . . . . . . . . . . . . . . . . . . . . . . . Garrison Access . | . . . . . . . . . . . . . . . . . . . . . . . . . . . . Data Cores Recovered 1 | . . . . . . . 1 . . . . . . . . . . . . . . . . . . . . Used . | . . . . . . . . . . . . . . . . . . . . . . . . . . . . Hacking Detections 85 | . 4 . 12 . . . 8 . 4 . 1 . 6 9 1 . 2 11 . 3 4 . 1 8 3 3 5 Full Trace Events 4 | . . . 3 . . . . . . . . . . . . . . 1 . . . . . . . . . Feedback Events . | . . . . . . . . . . . . . . . . . . . . . . . . . . . . Feedback Blocked . | . . . . . . . . . . . . . . . . . . . . . . . . . . . . Robot Schematics Acquired . | . . . . . . . . . . . . . . . . . . . . . . . . . . . . Robots Built . | . . . . . . . . . . . . . . . . . . . . . . . . . . . . Matter . | . . . . . . . . . . . . . . . . . . . . . . . . . . . . Time . | . . . . . . . . . . . . . . . . . . . . . . . . . . . . Total Robot Build Rating . | . . . . . . . . . . . . . . . . . . . . . . . . . . . . Part Schematics Acquired 26 | . . . 3 . . . 5 . 2 . . . . . . . 1 2 . . 5 . 2 1 5 . . Parts Built 6 | . . . . . . . . . . . . . . . . . . 1 . . 1 . . 2 . 2 . Matter 792 | . . . . . . . . . . . . . . . . . . 213 . . 278 . . 126 . 175 . Time 188 | . . . . . . . . . . . . . . . . . . 38 . . 69 . . 42 . 39 . Total Part Build Rating 36 | . . . . . . . . . . . . . . . . . . 5 . . 9 . . 8 . 14 . Parts Repaired 8 | . . . 1 . . . . . . . . . 4 . . . . 2 . . . . 1 . . . . Time 332 | . . . 26 . . . . . . . . . 149 . . . . 106 . . . . 51 . . . . Parts Recycled . | . . . . . . . . . . . . . . . . . . . . . . . . . . . . Recycled Matter 7 | . . . . . . . . . . . . . . . . . . . . 7 . . . . . . . Retrieved Matter 7 | . . . . . . . . . . . . . . . . . . . . 7 . . . . . . . Retrieved Components 10 | . . . . . . . . . . . . . . . . . . 10 . . . . . . . . . Parts Scanalyzed 21 | . . . 3 . . . 5 . 1 . . . . . . . . . . . 5 . 2 . 5 . . Part Schematics Acquired 21 | . . . 3 . . . 5 . 1 . . . . . . . . . . . 5 . 2 . 5 . . Parts Damaged 3 | . . . . . . . 1 . . . . . . . . . . . . . 1 . . . 1 . . Bothacking | -11 -10 -10 -9 -9 -9 -8 -8 -8 -8 -8 -7 -7 -6 -6 -6 -6 -6 -5 -5 -5 -4 -4 -4 -3 -2 -1 -1 ------------ Run | Scr Mat Min Mat Min Exi Min Mat Gar Mat Gar Fac Gar Fac Ext Cet Arc Hub Fac Was Fac Fac Was Fac Res Res Acc Com Used RIF Installer 3 | . . . . . . . . 1 . 1 . 1 . . . . . . . . . . . . . . . Coupler Efficiency 1 | . . . . . . . . . . 1 . . . . . . . . . . . . . . . . . Patrol Navigation 1 | . . . . . . . . . . . . 1 . . . . . . . . . . . . . . . Robots Hacked . | . . . . . . . . . . . . . . . . . . . . . . . . . . . . Non-combat . | . . . . . . . . . . . . . . . . . . . . . . . . . . . . Combat . | . . . . . . . . . . . . . . . . . . . . . . . . . . . . Robot Hacks Applied . | . . . . . . . . . . . . . . . . . . . . . . . . . . . . Relay Couplers Released 2 | . . . . . . . . . . . . . . . . . 2 . . . . . . . . . . Machine Destruction 2 | . . . . . . . . . . . . . . . . . 2 . . . . . . . . . . Robots Rewired 26 | . . . . . . . . . . . . . . 26 . . . . . . . . . . . . . Allies Hacked . | . . . . . . . . . . . . . . . . . . . . . . . . . . . . Hacks Repelled . | . . . . . . . . . . . . . . . . . . . . . . . . . . . . Allies | -11 -10 -10 -9 -9 -9 -8 -8 -8 -8 -8 -7 -7 -6 -6 -6 -6 -6 -5 -5 -5 -4 -4 -4 -3 -2 -1 -1 -------- Run | Scr Mat Min Mat Min Exi Min Mat Gar Mat Gar Fac Gar Fac Ext Cet Arc Hub Fac Was Fac Fac Was Fac Res Res Acc Com Total Allies 42 | . . . . 1 . . 1 . . . 1 . . 36 . . . . . . 1 . . 1 . 1 . Largest Group 18 | . . . . 1 . . 1 1 . . 1 . . 18 11 . . . . . 1 . . 1 . . . Highest-Rated Group 536 | . . . . 31 . . 10 10 . . 26 . . 536 338 . . . . . 10 . . 44 . . . Highest-Rated Ally 44 | . . . . 31 . . 10 10 . . 26 . . 37 37 . . . . . 10 . . 44 . . . Total Orders 1 | . . . . . . . . . . . . . . . . . . . . . 1 . . . . . . STAY 1 | . . . . . . . . . . . . . . . . . . . . . 1 . . . . . . Ally Attacks 275 | . . . . . . . . . . . . . . 181 94 . . . . . . . . . . . . Total Damage 5371 | . . . . . . . . . . . . . . 3483 1888 . . . . . . . . . . . . Kills 38 | . . . . . . . . . . . . . . 24 14 . . . . . . . . . . . . Allies Corrupted 2 | . . . . . . . . . . . . . . 2 . . . . . . . . . . . . . Allies Melted . | . . . . . . . . . . . . . . . . . . . . . . . . . . . . Intel | -11 -10 -10 -9 -9 -9 -8 -8 -8 -8 -8 -7 -7 -6 -6 -6 -6 -6 -5 -5 -5 -4 -4 -4 -3 -2 -1 -1 ------- Run | Scr Mat Min Mat Min Exi Min Mat Gar Mat Gar Fac Gar Fac Ext Cet Arc Hub Fac Was Fac Fac Was Fac Res Res Acc Com Robot Analysis Total 13 | . 3 . 1 . . . 2 . . . . . 3 . . . . 3 . . . . . . . 1 . Derelict Logs Recovered 4 | . . 2 . 2 . . . . . . . . . . . . . . . . . . . . . . . Drone Launches . | . . . . . . . . . . . . . . . . . . . . . . . . . . . . Drone Recoveries . | . . . . . . . . . . . . . . . . . . . . . . . . . . . . Exploration | -11 -10 -10 -9 -9 -9 -8 -8 -8 -8 -8 -7 -7 -6 -6 -6 -6 -6 -5 -5 -5 -4 -4 -4 -3 -2 -1 -1 ------------- Run | Scr Mat Min Mat Min Exi Min Mat Gar Mat Gar Fac Gar Fac Ext Cet Arc Hub Fac Was Fac Fac Was Fac Res Res Acc Com Turns Passed 39787 | 37 857 1275 7131 791 523 1015 2454 481 2549 670 411 655 2453 3545 919 411 2532 3297 61 374 713 214 405 1828 911 2803 472 Spaces Moved 22670 | 15 239 660 1213 472 317 560 848 160 640 115 152 150 949 1162 419 197 300 3248 155 762 1352 427 733 2288 1146 2962 1029 Core 243 | . . . 1 . . . . . . . . . . . . . . 1 . . 1 . . . . . 240 Treads 8566 | 14 239 660 1212 472 317 560 848 160 640 115 152 150 949 1162 419 197 300 . . . . . . . . . . Legs 1 | 1 . . . . . . . . . . . . . . . . . . . . . . . . . . . Wheels . | . . . . . . . . . . . . . . . . . . . . . . . . . . . . Hover 2183 | . . . . . . . . . . . . . . . . . . 2183 . . . . . . . . . Flight 11677 | . . . . . . . . . . . . . . . . . . 1064 155 762 1351 427 733 2288 1146 2962 789 Fastest Speed 20 | 120 160 180 165 165 165 165 165 190 190 181 183 183 162 162 162 158 156 37 37 37 32 34 32 32 34 28 20 Average Speed 91 | 157 176 180 179 165 165 165 189 190 190 184 183 183 180 162 170 167 167 62 37 37 36 35 33 34 34 29 36 Slowest Speed 1250 | 160 180 180 1250 165 165 165 190 190 190 190 183 183 183 162 178 178 185 650 37 37 650 37 117 114 114 108 114 Overloaded Moves . | . . . . . . . . . . . . . . . . . . . . . . . . . . . . Propulsion Burnouts . | . . . . . . . . . . . . . . . . . . . . . . . . . . . . Robots Hopped 82 | . . . . . . . . . . . . . . . . . . 7 . 4 12 . 2 12 6 33 6 Cave-ins Triggered . | . . . . . . . . . . . . . . . . . . . . . . . . . . . . Exploration Rate (%) 51 | 2 30 98 79 88 71 100 50 37 45 28 4 31 28 97 77 97 19 65 78 21 31 96 17 49 22 46 33 Regions Visited 27 Branch Regions 9 Pre-discovered Areas 1 | . . . . . 1 . . . . . . . . . . . . . . . . . . . . . . Known Exits Taken 14 | . . . 1 . . 1 1 . 1 . 1 . . 1 1 1 1 . . 1 . . 1 1 1 1 . Unknown Exits Taken 6 | 1 1 1 . 1 1 . . . . . . . 1 . . . . . . . . . . . . . . Scrap Searched 3 | . . 1 . 1 . 1 . . . . . . . . . . . . . . . . . . . . . Spaces Dug 135 | . . . . . . 12 10 . . . 1 . 2 . . . 1 19 . 5 6 2 10 19 10 34 4 Terrain Destroyed 726 | . . . 7 15 . 125 54 . 6 11 1 8 2 7 143 . 150 23 . 18 6 2 10 19 10 34 75 Melee 113 | . . . . . . . . . . . 1 . 2 . . . 1 19 . 5 6 2 10 19 10 34 4 Projectile 13 | . . . . . . . 1 . 6 . . . . . . . 2 4 . . . . . . . . . AOE 600 | . . . 7 15 . 125 53 . . 11 . 8 . 7 143 . 147 . . 13 . . . . . . 71 Terrain Rammed . | . . . . . . . . . . . . . . . . . . . . . . . . . . . . Walls Destroyed . | . . . . . . . . . . . . . . . . . . . . . . . . . . . . Machines Disabled . | . . . . . . . . . . . . . . . . . . . . . . . . . . . . Actions | -11 -10 -10 -9 -9 -9 -8 -8 -8 -8 -8 -7 -7 -6 -6 -6 -6 -6 -5 -5 -5 -4 -4 -4 -3 -2 -1 -1 --------- Run | Scr Mat Min Mat Min Exi Min Mat Gar Mat Gar Fac Gar Fac Ext Cet Arc Hub Fac Was Fac Fac Was Fac Res Res Acc Com Total 40196 | 22 640 710 6012 481 318 612 1647 309 1921 542 272 504 1642 2754 541 231 2267 4363 158 831 1544 467 853 3181 1617 4662 1095 Wait 15841 | . 373 16 4611 . . 10 716 132 1222 397 107 332 609 1363 69 . 1931 860 3 44 144 4 95 744 417 1601 41 Move 22481 | 14 238 659 1212 471 316 559 847 158 639 113 151 148 948 1161 418 196 299 3235 154 753 1328 426 728 2264 1133 2896 1017 Hop 79 | . . . . . . . . . . . . . . . . . . 6 . 4 12 . 2 11 6 32 6 Pick Up 172 | . 2 9 29 2 1 . 10 . 9 1 1 . 23 7 1 6 2 35 1 5 6 5 1 12 2 1 1 Fast Attach 74 | 1 . . 8 . . . 2 . 2 . . . 5 1 . . . 15 . 2 6 4 1 7 6 7 7 Attach 122 | . 2 . 8 . . 1 2 . . 1 2 2 2 1 1 4 4 40 . 2 1 3 1 16 11 15 3 Detach 70 | . . . 2 . . . 1 . . . . . . . . . . 19 . 1 1 3 1 16 12 12 2 Swap 120 | 3 3 1 20 . . 8 11 1 . 4 4 3 10 15 11 3 2 14 . 1 3 1 1 1 . . . Drop 162 | 1 . . 29 2 1 . 9 . 11 . . . 18 9 . 1 1 31 . 5 9 7 1 14 7 4 2 Fire 458 | 3 20 19 89 2 . 22 33 18 37 20 5 15 24 33 22 21 26 46 . 3 . . . . . . . Melee 353 | . . . . . . . . . . . 2 . 2 . 19 . 1 39 . 11 16 14 22 96 23 94 14 Ram 2 | . . . . . . . . . . . . . . . . . . . . . . . . . . . 2 Kick . | . . . . . . . . . . . . . . . . . . . . . . . . . . . . Crush 33 | . 2 6 4 4 . 12 1 . 1 . . . 1 1 . . 1 . . . . . . . . . . Escape Stasis 51 | . . . . . . . . . . 6 . 4 . . . . . 23 . . 18 . . . . . . Rewire 163 | . . . . . . . . . . . . . . 163 . . . . . . . . . . . . . Trap 15 | . . . . . . . 15 . . . . . . . . . . . . . . . . . . . . Miscellaneous . | . . . . . . . . . . . . . . . . . . . . . . . . . . . . Route ------- -11/Scrapyard -10/Materials (discovered 2 exits: *Mat / [*Min]) -10/Mines (discovered 2 exits: *Mat x2) -9/Materials (discovered 5 exits: *Mat x3 / *Min x2) -9/Mines (discovered 4 exits: *Mat x2 / *Exi / [*Zio]) -9/Exiles -8/Mines (discovered 2 exits: *Mat x2) -8/Materials (discovered 3 exits: *Fac / Sto / Gar) -8/Garrison -8/Materials (discovered 2 exits: *Fac / Gar) -8/Garrison -7/Factory (discovered 2 exits: Low / Gar) -7/Garrison -6/Factory (discovered 2 exits: *Fac / *Ext) -6/Extension (discovered 2 exits: *Fac / *Cet) -6/Cetus (discovered 3 exits: *Fac x2 / *Arc) -6/Archives (discovered 3 exits: *Fac / *Hub x2) -6/Hub_04(d) (discovered 2 exits: *Fac x2) -5/Factory (discovered 4 exits: *Fac x2 / Upp x2) -5/Waste -5/Factory -4/Factory -4/Waste -4/Factory (discovered 2 exits: *Res / *Upp) -3/Research (discovered 3 exits: *Res x3) -2/Research (discovered 3 exits: *Acc x3) -1/Access (discovered 2 exits: Sur / *Com) -1/Command History --------- Turn | Location | Event 1 | -11/Scrapyard | Discovered new exit (range 3) 38 | -11/Scrapyard | Entered Materials 269 | -10/Materials | Discovered new exit (range 16) 307 | -10/Materials | Build established: Mutant 685 | -10/Materials | Discovered new exit (range 12) 895 | -10/Materials | Entered Mines 1304 | -10/Mines | Discovered new exit (range 13) 1423 | -10/Mines | Discovered new exit (range 5) 1732 | -10/Mines | Learned location of 2 exits from Materials 2170 | -10/Mines | Entered Materials 2170 | -9/Materials | Evolved 2 slots: Propulsion x1, Utility x1 2171 | -9/Materials | Identified exit to Mines 2171 | -9/Materials | Identified exit to Materials 2476 | -9/Materials | Build established: Hauler-Mutant 4918 | -9/Materials | Repaired Lrg. Storage Unit 4932 | -9/Materials | Discovered exit to Mines (range 6) 5244 | -9/Materials | Discovered exit to Materials (range 9) 6950 | -9/Materials | Discovered exit to Materials (range 16) 7438 | -9/Materials | Build established: Scavenger-Mutant 9301 | -9/Materials | Entered Mines 9304 | -9/Mines | Received a Mining Laser from a helpful Derelict 9354 | -9/Mines | Discovered exit to Materials (range 4) 9389 | -9/Mines | Received a Rocket Launcher from a helpful Derelict 9418 | -9/Mines | A weapon hastily lodged in a ceiling crevice suddenly fell to the ground 9443 | -9/Mines | Build established: Hauler-Mutant 9505 | -9/Mines | A Derelict revealed a hidden shortcut to a safe place 9512 | -9/Mines | Discovered exit to Materials (range 15) 9827 | -9/Mines | Found a hidden stash of uninstalled traps 9932 | -9/Mines | Deemed a non-threat by the Exiles lab entrance 9934 | -9/Mines | Discovered new exit (range 5) 10092 | -9/Mines | Entered Exiles 10130 | -9/Exiles | Met 8R-AWN 10160 | -9/Exiles | Met EX-HEX 10243 | -9/Exiles | Met EX-DEC 10343 | -9/Exiles | Learned location of Zion (-7) 10373 | -9/Exiles | Met EX-BIN 10398 | -9/Exiles | Aligned with FarCom system 10399 | -9/Exiles | Given EX-Vault access code 10439 | -9/Exiles | Opened EX-Vault 10458 | -9/Exiles | Found Trap Reconfigurator 10493 | -9/Exiles | Warned to stay clear of 0b10 Research branches 10602 | -9/Exiles | Discovered new exit (range 10) 10615 | -9/Exiles | Left Exiles lab with Trap Reconfigurator 10615 | -9/Exiles | Entered Mines 10756 | -8/Mines | Discovered exit to Materials (range 12) 11597 | -8/Mines | Discovered exit to Materials (range 5) 11630 | -8/Mines | Entered Materials 11630 | -8/Materials | Evolved 2 slots: Utility x2 11631 | -8/Materials | Identified exit to Storage 13469 | -8/Materials | Discovered new exit (range 9) 13857 | -8/Materials | Central database locked down 14045 | -8/Materials | Identified exit to Garrison 14084 | -8/Materials | Entered Garrison 14084 | -8/Garrison | Accompanied by 1 ally 14094 | -8/Garrison | Installed Relay Interface Framework 14306 | -8/Garrison | Triggered checkpoint 14533 | -8/Garrison | Discovered new exit (range 15) 14565 | -8/Garrison | Entered Materials 16087 | -8/Materials | Discovered new exit (range 8) 17112 | -8/Materials | Identified exit to Garrison 17114 | -8/Materials | Entered Garrison 17124 | -8/Garrison | Expanded RIF knowledge: Coupler Efficiency 17612 | -8/Garrison | Triggered checkpoint 17763 | -8/Garrison | Discovered new exit (range 11) 17784 | -8/Garrison | Entered Factory 17784 | -7/Factory | Evolved 2 slots: Propulsion x1, Utility x1 17785 | -7/Factory | Identified exit to Lower Caves 18193 | -7/Factory | Identified exit to Garrison 18195 | -7/Factory | Entered Garrison 18270 | -7/Garrison | Triggered checkpoint 18801 | -7/Garrison | Discovered new exit (range 15) 18841 | -7/Garrison | Expanded RIF knowledge: Watcher Feeds 18850 | -7/Garrison | Entered Factory 18850 | -6/Factory | Evolved 2 slots: Utility x1, Weapon x1 19486 | -6/Factory | Build established: Hauler-Tank 19936 | -6/Factory | Repaired Broken Adv. Treads 19975 | -6/Factory | Repaired Arm. Treads 20064 | -6/Factory | Repaired Hrd. Light Armor Plating 20748 | -6/Factory | Build established: Hauler-Skirmisher 21037 | -6/Factory | Repaired Hcp. Storage Unit 21074 | -6/Factory | Discovered new exit (range 3) 21280 | -6/Factory | Discovered new exit (range 15) 21303 | -6/Factory | Entered Extension 21361 | -6/Extension | Rescued a captive Derelict 21362 | -6/Extension | Rescued a captive Derelict 21628 | -6/Extension | Rescued a captive Derelict 21654 | -6/Extension | Rescued a captive Derelict 21916 | -6/Extension | Identified exit to Cetus 21928 | -6/Extension | Rescued a captive Derelict 21936 | -6/Extension | Rescued a captive Derelict 21999 | -6/Extension | Rescued a captive Derelict 22006 | -6/Extension | Rescued a captive Derelict 22009 | -6/Extension | Build established: Commander-Skirmisher 22074 | -6/Extension | Rescued a captive Derelict 22455 | -6/Extension | Spotted B-75 Beast 22460 | -6/Extension | Allies destroyed B-75 Beast 22469 | -6/Extension | Spotted B-75 Beast 22472 | -6/Extension | Allies destroyed B-75 Beast 23110 | -6/Extension | Build established: Commander-Tank 24540 | -6/Extension | Rescued a captive Derelict 24570 | -6/Extension | Discovered new exit (range 10) 24848 | -6/Extension | Entered Cetus 24848 | -6/Cetus | Accompanied by 11 allies 24870 | -6/Cetus | Spotted Cetus Guard 24870 | -6/Cetus | Spotted Cetus Guard 24872 | -6/Cetus | Spotted Cetus Guard 24872 | -6/Cetus | Spotted Cetus Guard 24885 | -6/Cetus | Allies destroyed Cetus Guard 24890 | -6/Cetus | Allies destroyed Cetus Guard 24891 | -6/Cetus | Allies destroyed Cetus Guard 24945 | -6/Cetus | Discovered new exit (range 16) 25169 | -6/Cetus | Discovered new exit (range 16) 25173 | -6/Cetus | Build established: Hauler-Mutant 25208 | -6/Cetus | Spotted Cetus Guard 25209 | -6/Cetus | Spotted Cetus Guard 25213 | -6/Cetus | Spotted Cetus Guard 25214 | -6/Cetus | Spotted Cetus Guard 25217 | -6/Cetus | Allies destroyed Cetus Guard 25222 | -6/Cetus | Allies destroyed Cetus Guard 25224 | -6/Cetus | Allies destroyed Cetus Guard 25227 | -6/Cetus | Allies destroyed Cetus Guard 25241 | -6/Cetus | Discovered new exit (range 16) 25249 | -6/Cetus | Met Revision 17 25608 | -6/Cetus | Identified exit to Archives 25685 | -6/Cetus | Identified exit to Factory 25767 | -6/Cetus | Entered Archives 25854 | -6/Archives | Lost 3 parts (3n) 25886 | -6/Archives | Unable to access archive contents 25925 | -6/Archives | Discovered new exit (range 14) 25936 | -6/Archives | Unable to access archive contents 25965 | -6/Archives | Identified exit to Hub_04(d) 26004 | -6/Archives | Discovered exit to Hub_04(d) (range 15) 26024 | -6/Archives | Discovered exit to Factory (range 15) 26067 | -6/Archives | Build established: Hauler-Skirmisher 26093 | -6/Archives | Unable to access archive contents 26178 | -6/Archives | Entered Hub_04(d) 28267 | -6/Hub_04(d) | Discovered exit to Factory (range 12) 28482 | -6/Hub_04(d) | Discovered exit to Factory (range 16) 28692 | -6/Hub_04(d) | Network Hub disabled 28692 | -6/Hub_04(d) | Spotted Lightning 28692 | -6/Hub_04(d) | Spotted Lightning 28692 | -6/Hub_04(d) | Spotted Lightning 28692 | -6/Hub_04(d) | Spotted Lightning 28692 | -6/Hub_04(d) | Spotted Lightning 28704 | -6/Hub_04(d) | Core integrity fell below 50% 28710 | -6/Hub_04(d) | Entered Factory 28710 | -5/Factory | Evolved 2 slots: Utility x2 28737 | -5/Factory | Lost 7 parts (1p3n3w) 29006 | -5/Factory | Build established: Hacker-Mutant 29820 | -5/Factory | Discovered new exit (range 21) 30193 | -5/Factory | Spotted B-75 Beast 30851 | -5/Factory | Lost 3 parts (1p2w) 31097 | -5/Factory | Repaired KE Penetrator 31388 | -5/Factory | Lost 7 parts (1p3n2u1w) 31432 | -5/Factory | Identified exit to Upper Caves 31517 | -5/Factory | Repaired EM Shield 31561 | -5/Factory | Discovered new exit (range 9) 31571 | -5/Factory | Identified exit to Factory 31731 | -5/Factory | Core integrity fell below 50% 31851 | -5/Factory | Fabricated Exp. Signal Interpreter (x1) 31971 | -5/Factory | Build established: Mutant 32007 | -5/Factory | Sucked down chute 32007 | -5/Factory | Entered Waste 32016 | -5/Waste | Spotted C-40 Crusher 32022 | -5/Waste | EMP discharged 32036 | -5/Waste | Spotted C-40 Crusher 32036 | -5/Waste | Spotted C-40 Crusher 32038 | -5/Waste | Spotted C-40 Crusher 32039 | -5/Waste | Spotted C-40 Crusher 32048 | -5/Waste | Spotted C-40 Crusher 32051 | -5/Waste | Discovered new exit (range 16) 32068 | -5/Waste | Identified exit to Factory 32068 | -5/Waste | Entered Factory 32382 | -5/Factory | Discovered exit to Factory (range 16) 32442 | -5/Factory | Entered another Factory area 32442 | -4/Factory | Evolved 2 slots: Propulsion x2 32679 | -4/Factory | Build established: Hacker-Mutant 32721 | -4/Factory | Found Prototype Slashing Weapon 32721 | -4/Factory | Identified Molecular Scythe 33022 | -4/Factory | Spotted B-86 Titan 33088 | -4/Factory | Fabricated Adv. Reaction Control System? 33155 | -4/Factory | Sucked down chute 33155 | -4/Factory | Entered Waste 33155 | -4/Waste | The area was eerily silent 33189 | -4/Waste | Found Prototype Device 33189 | -4/Waste | Identified Exp. Shock Absorption System 33266 | -4/Waste | Discovered new exit (range 12) 33290 | -4/Waste | Found Damper Plating 33369 | -4/Waste | Identified exit to Factory 33369 | -4/Waste | Entered Factory 33522 | -4/Factory | Repaired Broken Quantum Reactor 33559 | -4/Factory | Discovered new exit (range 6) 33561 | -4/Factory | Identified exit to Upper Caves 33763 | -4/Factory | Discovered new exit (range 8) 33765 | -4/Factory | Identified exit to Research 33774 | -4/Factory | Entered Research 33774 | -3/Research | Evolved 2 slots: Power x1, Utility x1 34283 | -3/Research | Identified exit to Research 34862 | -3/Research | Found Fusion Bomb Launcher 35074 | -3/Research | Spotted B-86 Titan 35544 | -3/Research | Fabricated Greatsword (x2) 35602 | -3/Research | Entered another Research area 35602 | -2/Research | Evolved 2 slots: Utility x1, Weapon x1 36257 | -2/Research | Identified exit to Access 36513 | -2/Research | Entered Access 36513 | -1/Access | Evolved 2 slots: Propulsion x1, Utility x1 36567 | -1/Access | Identified exit to Surface 36812 | -1/Access | Build established: Hacker-Sprinter 37800 | -1/Access | Fabricated Field Propulsion Array (x2) 37881 | -1/Access | Spotted B-99 Colossus 38868 | -1/Access | Build established: Wizard-Sprinter 39259 | -1/Access | Identified exit to Command 39315 | -1/Access | Lost 6 parts (1p3n1u1w) 39316 | -1/Access | Entered Command 39598 | -1/Command | Lost 9 parts (1p7n1u) 39618 | -1/Command | Core integrity fell below 50% 39706 | -1/Command | Disengaged cave seal 39746 | -1/Command | Phase Generator disabled 39747 | -1/Command | Core integrity fell below 20% 39777 | -1/Command | Lost 3 parts (1n1u1w) 39788 | -1/Command | Destroyed by S-43 Plague with Heavy Machine Gun Last Messages --------------- 39703_ C2BYL&VU&IICR/ A 2MNV 39704_ Slammed into P-80 Master. 39705_ Adv. Hacking Suite destroyed. 39725_ System corrupted: Matter fused (-8). 39746_ Phase Generator explodes. 39746_ Exp. Q-thruster destroyed. 39746_ Destroyed Exp. Q-thruster. 39746_ Power Sword destroyed. 39746_ Destroyed Power Sword. 39746_ Imp. System Shield destroyed. 39746_ Destroyed Imp. System Shield. 39746_ Machine disabled. 39747_ System corrupted: Component data lost. 39748_ The unstable cave ceiling collapses. 39759_ K-01 Serf collects debris. 39762_ FFE/G=9ZQ T 39763_ K-01 Serf collects debris. 39765_ The unstable cave ceiling collapses. 39767_ K-01 Serf collects debris. 39770_ The unstable cave ceiling collapses. Map ----- +----------------------------------------------------+ | #????????? # #???# | | #??????? # ##??# | | #??????# [ ############# ##?# | | | #??????# #???????????## #?#####+ | | #??????# #????????????###??# | | "" "" #??????# #?????????????????# | | ""T"" #??????###########?????????????????# | | """ #??????????????????????????????????# | | #??????????????????????????????????# | | #??????????????????????????????????# | | "" ""###+##??????????????????????????????????# | | ""R""#?# #???????????????????????????????????# ##/ | | """"??# #???????????????????????????????????# # | | ###????# #???????????????????????????????????# # | | ???#???# #???????????????????????????????????# # | | ?? #???# #???????????????????????????????????# # | | ?? #??? ???????????????????????????????????# + | | ?? #??? ???????????????????????????????????# # | | ?? ?? #??????????????????????????????????# # | | ? #??# #?????###########??????????????????# # | | ? #??#o^^#?????# = #??????###?????????# # | | ? #??# #?????# #??????# ######### ##+ | | # ##?# #?????# "" #??????# | | #?# #?????# """"ss #??????# | | T" #?# #?????# """"s ########### | | "" #?# #?????# ""s @/ | | #?# #?????# s ################ | | #####?# #?????# ! ! #?????#####????# | | ###???# +?????####+######?##### ###??# | | #???# #??+?????# #?????## # ##?# | | # #???# #????????# #????## # # ### | | # #???# #????????# #????# " ## ####### | | # #???# #????????# #???## ## #?????? | | # #???# #??????###p###?# " ## #?????? | | #/##### w#??????# g #?# ### #?????? | | # #??????# g #?# "" +?????? | | # #??????# g #?## #### #?????? | | !! # #??????# g #?# ## #?????? | | !! + #??????# p #?## ## #?????? | | ####### ####+#####p###??# # ## #?????? | | ##### ^ g #????## # ### +?????? | | #?????## # ! !## #?????? | | #??????#### # ## #?????? | | #?????????# + ## #?????? | | ########## ########### # ## ####### | | ###????????# # + | | ?????????# #### ########## | | ???????# #??########????????? | | ?????####################??????????????????? | | ! #??????????????????????????????????????????? | +----------------------------------------------------+ Best States ------------- Heat Dissipation 59 Energy Generation 37 Energy Capacity 725 Matter Stores 300 Matter Capacity 300 Sight Range 22 Terrain Scan Density 10 ECM Strength 3 Jamming Range 12 Cloak Strength 2 EM Shielding 3 Armor Coverage 1200 Resistance: EM 90 Power Shielding 66 Propulsion Shielding 66 Evasion (%) 66 Melee Accuracy 5 Core Analysis 10 Armor Integrity Analysis 33 Recoil Reduction 4 Offensive Hacking 38 Defensive Hacking 24 Item Schematics ----------------- Beamcaster | -9/Materials | Scanalyzed Lgt. Treads | -9/Materials | Scanalyzed Lrg. Storage Unit | -9/Materials | Scanalyzed Hvy. Battle Rifle | -8/Materials | Scanalyzed Hacking Suite | -8/Materials | Scanalyzed Adv. Treads | -8/Materials | Scanalyzed Arm. Treads | -8/Materials | Scanalyzed Grenade Launcher | -8/Materials | Scanalyzed Adv. Signal Interpreter | -8/Materials | Hacked Insulated Plating | -8/Materials | Scanalyzed Cmb. Airjet | -6/Hub_04(d) | Hacked Exp. Sensor Array | -5/Factory | Hacked Exp. Signal Interpreter | -5/Factory | Hacked Nuclear Pulse Array | -4/Factory | Scanalyzed Hcp. Storage Unit | -4/Factory | Scanalyzed Imp. Actuator Array | -4/Factory | Scanalyzed Lyr. Light Armor Plating | -4/Factory | Scanalyzed Reaction Control System | -4/Factory | Scanalyzed Q-thruster | -4/Factory | Scanalyzed Quantum Reactor | -4/Factory | Scanalyzed Greatsword | -3/Research | Hacked Field Propulsion Array | -2/Research | Scanalyzed Imp. Dynamic Insulation System | -2/Research | Scanalyzed Adv. ECM Suite | -2/Research | Scanalyzed Fusion Bomb Launcher | -2/Research | Scanalyzed Impulse Thruster | -2/Research | Scanalyzed Robot Schematics ------------------ None Fabricated ------------ Exp. Signal Interpreter | x1 | -5/Factory Adv. Reaction Control System | x1 | -4/Factory | Preloaded Greatsword | x2 | -3/Research Field Propulsion Array | x2 | -1/Access Alien Tech Used ----------------- None Achievements -------------- Collateral Damage Revising The Future Challenges ------------ None Game ------ Seed NeutronScanInterpreter Manual? 0 Play Time 04:44:23 Cumulative 138.4 hours Start 2020.11.19 @ 19:25:10 End 2020.11.20 @ 12:16:01 Sessions 3 Manual Loads 0 Difficulty Rogue Special Mode Halloween2020/ForbiddenLore Game No. 104 Rogue 104 Adventurer 0 Explorer 0 Win Type - Total 3 Types 3/0/0/0/0/0/0/0/0 Lore% 44 Gallery% 56 Achievement% 44 Wizard Run 0 Options --------- ASCII 1 Keyboard 1 Movement Arrows Keybinds 0 Fullscreen 1 Font 24/Proggy Map View 76x50 Tactical HUD 1 Map Filters NONE Filters NONE Steam 1 RUN: 55cb8be0-deef-463d-bd9c-f5f92e487c21